[Event "European Women-ch 2023"]
[Site "Petrovac"]
[Date "2023.03.18"]
[Round "1.13"]
[White "Melia, Salome"]
[Black "Pogorelskikh, Sofia"]
[Result "1/2-1/2"]
[ECO "B31"]
[WhiteElo "2366"]
[BlackElo "2102"]
[Annotator "TA"]
[PlyCount "108"]
[EventDate "2023.03.15"]
[EventType "swiss"]
[EventCountry "MNE"]
[SourceTitle "playchess.com"]
[Source "ChessBase"]
[SourceQuality "1"]
[TimeControl "40/5400+30:1800+30"]

{[%evp 15,108,20,0,0,0,0,0,0,0,9,2,19,0,0,7,0,0,5,-2,-54,-58,-47,-39,-38,0,-24,-17,-20,-13,-234,22,11,105,138,141,111,113,113,191,71,68,0,0,0,0,-5,-14,-33,0,-14,-29,-24,-21,-177,145,170,165,157,229,-95,-104,-118,-118,-65,-91,-119,-117,-118,-104,-62,0,0,0,0,0,0,0,0,0,0,0,0,0,0,0,0,0,0,0,0,0,0,0,0,0]} 1. e4 {[%emt 0:00:03]} c5 {[%emt 0:00:10]} 2. Nf3 {[%emt 0:00:11]} Nc6 {[%emt 0:00:11]} 3. Bb5 {[%emt 0:00:06]} g6 {[%emt 0:00:12]} 4. O-O {[%emt 0:00:35]} Bg7 {[%emt 0:00:23]} 5. c3 {[%emt 0:00:44]} e5 {[%emt 0:01:16]} 6. d4 {[%emt 0:04:08]} cxd4 {[%emt 0:00:16]} 7. cxd4 {[%emt 0:00:04]} exd4 {[%emt 0:00:12]} 8. Bf4 {[%emt 0:00:22]} a6 {[%emt 0:00:58]} 9. Ba4 $1 {[%emt 0:00:25] 9.Ba4 scores better than 9.Bc4. B31: Sicilian: 2...Nc6 3 Bb5 g6.} Nge7 {[%emt 0:00:44]} 10. Bd6 {[%emt 0:03:53]} b5 {[%emt 0:00:41]} 11. Bb3 {[%emt 0:00:06]} Bb7 {[%emt 0:00:51]} 12. Ng5 {[%emt 0:03:55]} O-O {[%emt 0:00:48]} 13. Qf3 {[%emt 0:00:04][%cal Rb3f7]} Qe8 {[%emt 0:00:39]} (13... h6 $2 14. Nxf7 Rxf7 15. Qxf7+ Kh7 16. a4 $18) 14. Qg3 {[%emt 0:01:38]} Na5 {[%emt 0:01:54]} 15. Nd2 {[%emt 0:07:32][%cal Og5h7] White wants to play Nxh7!} h6 {[%emt 0:01:48]} 16. Ngf3 {[%emt 0:01:39]} Rc8 {[%emt 0:01:20] [#]} 17. Rac1 $146 {[%emt 0:20:28]} ({White should play} 17. Ne5 $11) ({Predecessor:} 17. Rfe1 Qd8 18. Ne5 Nxb3 19. Qxb3 Nc6 20. Bxf8 Bxe5 21. Ba3 Na5 22. Qh3 Nc4 23. Rad1 Nxd2 24. Rxd2 {½-½ Duda,J (2731)-Wang,H (2722) Chess.com Rapid CGC KO 2022 (2.1)}) 17... Rxc1 {[%emt 0:34:43]} 18. Rxc1 {[%emt 0:00:04]} Nxb3 {[%emt 0:00:53]} 19. axb3 {[%emt 0:02:21]} f5 {[%emt 0:10:27]} (19... Qd8 $5 {[%cal Rf8e8]}) 20. e5 {[%emt 0:03:53]} (20. Bxe7 Qxe7 21. exf5 (21. Qxg6 $2 fxe4 22. Re1 Qb4 $19) 21... gxf5 $17) 20... f4 {[%emt 0:07:22]} 21. Qg4 {[%emt 0:05:24]} Rf5 {[%emt 0:06:42]} 22. Rc7 $2 {[%emt 0:16:44] Prevents Nc6} (22. Nxd4 $2 Rg5 23. Qh3 (23. Qxf4 $2 Rxg2+ 24. Kf1 g5 $19) 23... Bxg2 24. Qxg2 Rxg2+ 25. Kxg2 g5 $19) (22. Bxe7 $11 Qxe7 23. Qxg6) 22... Bc6 $2 {[%emt 0:14:58]} (22... Bxf3 $19 23. Nxf3 Nc6) 23. Bxe7 {[%emt 0:06:01]} (23. Nxd4 {simplifies} Rg5 24. Nxc6 Nxc6 25. Qxd7 Qxd7 26. Rxd7 Nxe5 27. Rd8+) 23... Qxe7 {[%emt 0:00:10]} (23... h5 $1 $11 24. Qh4 Bxe5 25. Nxe5 Rxe5) 24. Qxg6 $16 {[%emt 0:01:33]} Qf8 {[%emt 0:03:06]} 25. h4 {[%emt 0:04:20] White is much more active.} (25. Nxd4 Rg5 26. Rxc6 Rxg6 27. Rxg6 Qc5 $17) 25... d3 {[%emt 0:03:25]} 26. Kh2 {[%emt 0:11:00]} Rf7 {[%emt 0:03:26]} (26... Kh8 $16 {was worth a try.}) 27. Qxd3 {[%emt 0:01:30]} (27. Nd4 $18 Re7 28. Qxd3 (28. Nxc6 dxc6 29. Qxc6 Rxc7 $16)) 27... Qb8 {[%emt 0:01:27] [#]} 28. e6 {[%emt 0:02:05]} Qxc7 $11 {[%emt 0:01:42]} 29. exf7+ {[%emt 0:00:07]} Kxf7 {[%emt 0:00:31]} 30. h5 {[%emt 0:01:06]} Qd8 {[%emt 0:01:20]} 31. Qg6+ {[%emt 0:01:01]} Kg8 {[%emt 0:00:49]} 32. Ne5 {[%emt 0:02:28]} Bd5 {[%emt 0:00:55]} 33. Ndf3 {[%emt 0:00:41] Repels Qh4+} Qe7 {[%emt 0:02:08]} 34. Ng4 $2 {[%emt 0:00:36] [#]} (34. Qf5 $11 {and White is okay.} Bxb3 35. Ng6) 34... Be4 $2 {[%emt 0:00:26]} (34... Qe6 $1 $19 {[%cal Re6g6] ...Qxg6 is the strong threat.} 35. Nxh6+ Kh8) 35. Nxh6+ $16 {[%emt 0:00:31] A dynamic duo of knights.} ({Much weaker is} 35. Qxa6 $6 Bxf3 36. gxf3 Qh4+ 37. Kg1 Qxh5 $11) 35... Kf8 {[%emt 0:00:10]} 36. Nf5 {[%emt 0:00:37]} ({And not} 36. Qxa6 Qc5 37. Kg1 Qc1+ 38. Kh2 Qc5 $11) 36... Qf6 {[%emt 0:00:41]} (36... Bxf5 $16 {might work better.} 37. Qxf5+ Qf7) 37. N3h4 $2 {[%emt 0:00:30] [#]} (37. Qxg7+ $18 Qxg7 38. Nxg7 Kxg7 39. Kh3) 37... Bxf5 $1 $17 {[%emt 0:00:37]} 38. Qxf5 {[%emt 0:00:25]} Qxf5 {[%emt 0:00:24]} 39. Nxf5 {[%emt 0:00:01]} Bxb2 {[%emt 0:00:20][%mdl 4096] Endgame Strongly threatening ...a5. KB-KN} 40. Kh3 {[%emt 0:00:00]} a5 {[%emt 0:00:00] aiming for ...a4.} 41. Nd6 {[%emt 0:05:07]} a4 {[%emt 0:05:40]} 42. Nxb5 {[%emt 0:00:29]} a3 {[%emt 0:10:04]} (42... axb3 $15 43. Kg4 Be5) 43. Nxa3 $1 $11 {[%emt 0:00:04] The position is equal.} Bxa3 {[%emt 0:00:04] KB-KP} 44. Kg4 {[%emt 0:00:40]} Bd6 {[%emt 0:01:19] ...Kg7 would be deadly.} 45. b4 $1 {[%emt 0:08:43][%cal Bb3b4,Bb4b5,Bb5b6,Bb6b7][%mdl 32]} Kg7 {[%emt 0:02:28]} 46. b5 {[%emt 0:01:14]} Kh6 {[%emt 0:10:37] White must now prevent ...Bc7.} 47. b6 {[%emt 0:00:45] Prevents Bc7} Bb8 {[%emt 0:00:39]} 48. g3 {[%emt 0:05:57]} fxg3 {[%emt 0:00:25]} 49. fxg3 {[%emt 0:00:07] KB-K3P} d5 {[%emt 0:02:20]} 50. b7 {[%emt 0:04:54]} Bc7 {[%emt 0:01:07]} (50... d4 $5) 51. Kf3 {[%emt 0:00:51]} Kxh5 {[%emt 0:01:17]} 52. Ke3 {[%emt 0:00:08]} Bb6+ {[%emt 0:00:44]} 53. Kf4 {[%emt 0:02:12]} Bc7+ {[%emt 0:00:15]} 54. Ke3 {[%emt 0:00:05]} Bb6+ {[%emt 0:00:00] Weighted Error Value: White=0.33/Black=0.28 (precise)} 1/2-1/2

[Event "European Women-ch 2023"]
[Site "Petrovac"]
[Date "2023.03.18"]
[Round "1.13"]
[White "Radeva, Viktoria"]
[Black "Popovic, Mateja"]
[Result "1-0"]
[ECO "B85"]
[WhiteElo "2247"]
[BlackElo "1832"]
[Annotator "TA"]
[PlyCount "101"]
[EventDate "2023.03.15"]
[EventType "swiss"]
[EventCountry "MNE"]
[SourceTitle "playchess.com"]
[Source "ChessBase"]
[SourceQuality "1"]
[TimeControl "40/5400+30:1800+30"]

{[%evp 26,101,7,5,42,-23,-18,-25,-23,-25,-32,-35,-6,-13,-8,-15,-28,-21,70,60,66,18,17,4,62,63,68,0,0,0,63,78,84,88,79,61,67,69,169,140,136,150,193,111,257,81,199,164,467,279,432,177,191,64,62,64,73,66,70,44,66,14,35,36,103,0,82,100,310,290,295,285,772,792,1184,1074,967,927]} 1. e4 {[%emt 0:00:03]} c5 {[%emt 0:01:33]} 2. Nf3 {[%emt 0:00:07]} e6 {[%emt 0:00:20]} 3. d4 {[%emt 0:00:05]} cxd4 {[%emt 0:00:24]} 4. Nxd4 {[%emt 0:00:09]} Nc6 {[%emt 0:00:13]} 5. Nc3 {[%emt 0:00:10]} Qc7 {[%emt 0:00:23]} 6. Be2 {[%emt 0:00:16]} Nf6 {[%emt 0:00:13]} 7. O-O {[%emt 0:00:22]} a6 {[%emt 0:00:13]} 8. Be3 {[%emt 0:00:07]} d6 {[%emt 0:03:15]} 9. f4 {[%emt 0:00:08]} Be7 {[%emt 0:02:47]} 10. Qe1 {[%emt 0:00:56]} O-O {[%emt 0:02:46]} 11. Qg3 {[%emt 0:00:46]} Nxd4 {[%emt 0:02:46]} 12. Bxd4 {[%emt 0:00:05]} b5 {[%emt 0:00:59]} 13. a3 {[%emt 0:00:05]} Bb7 {[%emt 0:00:17]} 14. Rae1 {[%emt 0:00:21]} g6 {[%emt 0:14:19] B85: Sicilian Scheveningen: 6 Be2 a6, lines with early Be3.} 15. Bd3 {[%emt 0:15:15] [#]} (15. f5 $14) 15... e5 $1 $11 {[%emt 0:04:39] [#]} 16. fxe5 $146 {[%emt 0:05:34]} ({Predecessor:} 16. Be3 exf4 17. Qxf4 Nd7 18. Bd4 Ne5 19. Re3 Qd8 20. Re2 Bg5 21. Qg3 Bf6 22. Kh1 {½-½ Sarenac,I (2137)-Irizanin,R (2260) Belgrade Winter op 2006 (2)}) 16... Nh5 {[%emt 0:00:13] Black has an edge.} 17. Qf2 {[%emt 0:07:21]} dxe5 {[%emt 0:02:22]} 18. Bb6 {[%emt 0:00:17]} Qd6 {[%emt 0:00:16][%cal Of7f5]} 19. Be3 {[%emt 0:06:11]} Nf6 {[%emt 0:03:30]} 20. Qf3 {[%emt 0:04:29] Prevents Ng4} (20. Bg5 {feels hotter.} Kg7 21. Kh1 Rad8 22. Qa7) 20... Qe6 {[%emt 0:06:24]} 21. Bg5 {[%emt 0:08:55][%cal Rg5f6]} Bc5+ {[%emt 0:05:54]} (21... Kg7 $11) 22. Kh1 $14 {[%emt 0:00:51]} Nh5 {[%emt 0:12:01]} 23. Nd5 {[%emt 0:08:50]} (23. a4 $14) 23... Bxd5 $11 {[%emt 0:00:13]} 24. exd5 {[%emt 0:00:04]} Qd6 {[%emt 0:00:06] Black is weak on the light squares} (24... Qd7 $11) 25. Bh6 $14 {[%emt 0:06:41]} Ng7 {[%emt 0:00:36]} 26. Qf6 {[%emt 0:06:19]} (26. g4 $14) 26... Qxf6 $11 {[%emt 0:00:44]} 27. Rxf6 {[%emt 0:00:01]} Rfd8 {[%emt 0:02:44]} (27... Bd4 $11) 28. Rc6 $1 $14 {[%emt 0:05:23]} (28. Rxe5 $2 Bd4 29. Bf4 Nh5 30. Rxh5 Bxf6 $19) 28... Bd6 {[%emt 0:00:30]} (28... Rxd5 $2 29. Be4 Bf2 30. Bxd5 $16) 29. Bg5 $36 {[%emt 0:01:30][%mdl 2048] Keeping Black busy. White is much more active.} Rd7 {[%emt 0:01:05] [#]} 30. a4 $1 {[%emt 0:08:41]} Ne8 {[%emt 0:03:55]} (30... bxa4 31. c4) 31. axb5 {[%emt 0:02:14]} f6 {[%emt 0:00:15]} (31... axb5 $14 32. Bxb5 Bb4) 32. Bd2 {[%emt 0:01:04]} ({Inferior is} 32. Rxa6 Rxa6 33. bxa6 fxg5 $11) 32... axb5 {[%emt 0:00:51]} 33. Bxb5 {[%emt 0:00:16]} Rb8 {[%emt 0:01:01] Wards off Rb6} 34. Ba4 {[%emt 0:02:01]} (34. c4 $18) 34... Nc7 {[%emt 0:05:27]} (34... Bf8 $16 {is a better defense.}) 35. Bb3 $2 {[%emt 0:05:31]} (35. c4 $18 {is more deadly.}) 35... Rb5 {[%emt 0:00:37] Against b4} (35... Nb5 $16) 36. Be3 {[%emt 0:02:31]} Nxd5 $2 {[%emt 0:01:28]} (36... Kf7 37. Ra1 Rxb3 {[%mdl 64] Remove Defender} 38. cxb3 Nxd5) 37. Rd1 {[%emt 0:00:47]} (37. Bc4 $142 Bf8 38. Rc8 (38. Rxf6 Rxb2 39. Rd1 Kg7 $18)) 37... Be7 {[%emt 0:00:22]} (37... Rxb3 $142 38. cxb3 Bf8) 38. Rb6 {[%emt 0:01:05]} (38. Bc4 $142 Rxb2 39. Rxd5 Rxd5 40. Bxd5+ Kg7 41. g4) 38... Ra5 $18 {[%emt 0:01:54]} 39. Bd2 {[%emt 0:00:12]} ({Better is} 39. Bg1 $18) 39... Kg7 $1 $14 {[%emt 0:03:04]} 40. Bxa5 {[%emt 0:00:00] This pair of bishops is nice.} Nxb6 {[%emt 0:00:00] [#]} 41. Rxd7 {[%emt 0:05:07]} Nxd7 {[%emt 0:00:12][%mdl 4096] Endgame KBB-KBN} 42. Bd5 {[%emt 0:01:35]} f5 {[%emt 0:03:23]} 43. Kg1 {[%emt 0:03:04]} (43. Bc6 $14 Nf6 44. b4) 43... Kf6 {[%emt 0:02:09]} 44. Kf1 {[%emt 0:03:20]} g5 {[%emt 0:01:52]} (44... Bc5 $14) 45. c4 {[%emt 0:01:35]} ({White should play} 45. b4 $16) 45... Bc5 {[%emt 0:04:46]} (45... Nc5 $1 $11 {remains equal.}) 46. b4 $16 {[%emt 0:05:15]} Bd4 {[%emt 0:01:08]} (46... Bb6 $16 {might work better.}) 47. Bd8+ $18 {[%emt 0:00:29]} Kg6 {[%emt 0:00:58]} 48. Bc6 {[%emt 0:01:28]} Nf8 {[%emt 0:01:27]} (48... Nf6 49. b5 Ng4) 49. Be8+ {[%emt 0:01:38] White is clearly winning.} Kh6 {[%emt 0:00:16]} 50. c5 {[%emt 0:00:41][%cal Bc4c5,Bc5c6][%mdl 32] c6 would be deadly.} Ne6 {[%emt 0:01:18] [#]} 51. c6 $1 {[%emt 0:00:26] Weighted Error Value: White=0.38/Black=0.49} 1-0

[Event "European Women-ch 2023"]
[Site "Petrovac"]
[Date "2023.03.18"]
[Round "1.14"]
[White "Kejzar, Petra"]
[Black "Wagner, Dinara"]
[Result "0-1"]
[ECO "B23"]
[WhiteElo "2128"]
[BlackElo "2411"]
[Annotator "TA"]
[PlyCount "46"]
[EventDate "2023.03.15"]
[EventType "swiss"]
[EventCountry "MNE"]
[SourceTitle "playchess.com"]
[Source "ChessBase"]
[SourceQuality "1"]
[TimeControl "40/5400+30:1800+30"]

{[%evp 9,46,0,0,-8,0,0,25,6,0,14,19,0,0,0,0,-104,-103,-104,-110,-115,-134,-123,-122,-127,-129,-133,-51,-204,-208,-403,-373,-406,-383,-526,-522,-694,-647,-647,-668]} 1. e4 {[%emt 0:00:05]} c5 {[%emt 0:00:06]} 2. Nc3 {[%emt 0:00:05]} d6 {[%emt 0:01:12]} 3. d4 {[%emt 0:00:27]} cxd4 {[%emt 0:00:12]} 4. Qxd4 {[%emt 0:00:05]} Nc6 {[%emt 0:01:10]} 5. Qd2 {[%emt 0:00:06]} Nf6 {[%emt 0:00:13]} 6. b3 {[%emt 0:00:22] B23: Closed Sicilian: Lines without g3.} e6 {[%emt 0:00:04][%cal Be7e6,Be6d5,Bd5e4][%mdl 32]} 7. Bb2 {[%emt 0:00:54]} d5 {[%emt 0:00:06] is cutting edge theory.} 8. exd5 {[%emt 0:05:16] White has an edge.} exd5 {[%emt 0:00:05]} 9. O-O-O {[%emt 0:03:09][%cal Rc3d5]} Be6 {[%emt 0:00:29]} 10. Nf3 {[%emt 0:03:46]} Qa5 {[%emt 0:02:23] [#]} 11. Bb5 $146 {[%emt 0:05:37]} ({Predecessor:} 11. Na4 Qxd2+ 12. Rxd2 Ne4 13. Re2 O-O-O 14. Nd4 Nxd4 15. Bxd4 b5 16. Nb2 Bb4 17. f3 {½-½ Harsha,B (2547)-Navara,D (2682) Chess.com Rapid Wk16 Swiss 2022 (3)}) 11... Bb4 {[%emt 0:06:44]} 12. Rhe1 {[%emt 0:16:37] [#] Inhibits Ne4.} (12. Qe3 $1 $11) 12... Ne4 $1 $17 {[%emt 0:21:03][%mdl 512]} 13. Rxe4 {[%emt 0:00:31]} dxe4 {[%emt 0:00:05]} 14. Nd4 {[%emt 0:05:14]} O-O-O {[%emt 0:19:48]} 15. Bxc6 {[%emt 0:03:26]} bxc6 {[%emt 0:00:41]} 16. Qe3 {[%emt 0:01:42]} Bd5 {[%emt 0:15:15]} 17. Na4 {[%emt 0:11:48] [#]} Rd7 {[%emt 0:03:25]} (17... Rhe8 $1 $17 18. a3 Bf8) 18. Qh3 $2 {[%emt 0:07:57] This move loses the game for White.} (18. a3 $1 $15 Bf8 19. Nf5) 18... Rhd8 $19 {[%emt 0:01:15][%cal Od5e6] ...Be6! is the strong threat.} 19. c3 $2 {[%emt 0:10:21]} (19. Qg4 {was worth a try.}) 19... Be7 {[%emt 0:03:24]} 20. Kc2 {[%emt 0:01:30]} Kb7 {[%emt 0:02:18]} 21. Qxh7 {[%emt 0:08:12]} c5 {[%emt 0:03:07] Black is clearly winning.} 22. Ne2 {[%emt 0:01:15]} Bc6 {[%emt 0:06:19][%csl LRa4,LRd1]} 23. Rxd7+ {[%emt 0:00:50]} Rxd7 {[%emt 0:00:01] Weighted Error Value: White=0.57/Black=0.09 (flawless)} 0-1

[Event "European Women-ch 2023"]
[Site "Petrovac"]
[Date "2023.03.18"]
[Round "1.14"]
[White "Vidic, Teja"]
[Black "Bivol, Alina"]
[Result "0-1"]
[ECO "C28"]
[WhiteElo "2097"]
[BlackElo "2365"]
[Annotator "TA"]
[PlyCount "94"]
[EventDate "2023.03.15"]
[EventType "swiss"]
[EventCountry "MNE"]
[SourceTitle "playchess.com"]
[Source "ChessBase"]
[SourceQuality "1"]
[TimeControl "40/5400+30:1800+30"]

{[%evp 9,94,14,31,0,0,-4,-6,-8,0,0,0,0,0,0,17,0,0,0,0,-22,23,-29,0,-33,-33,-75,-77,-72,-54,-65,-26,-29,-43,-37,0,0,0,0,0,0,0,-20,-10,-26,-25,-64,-74,-74,-74,-82,-84,-126,-91,-141,-141,-124,-111,-172,-124,-184,-180,-295,-289,-4718,-4794,-29968,-29967,-7317,-5782,-29977,-29978,-29978,-29979,-29979,-29980,-29980,-4802,-29981,-29982,-29985,-29986,-29986,-29987,-29987,-29988,-29988,-29989]} 1. e4 {[%emt 0:00:06]} e5 {[%emt 0:00:10]} 2. Nc3 {[%emt 0:00:05]} Nc6 {[%emt 0:00:57]} 3. Bc4 {[%emt 0:00:06]} d6 {[%emt 0:00:55]} 4. d3 {[%emt 0:03:09]} Nf6 {[%emt 0:07:46]} 5. f4 {[%emt 0:01:04]} Na5 {[%emt 0:04:16]} 6. f5 {[%emt 0:04:19] C28: Vienna Game: 2...Nf6 3 Bc4 Nc6.} c6 {[%emt 0:04:03]} 7. Qf3 {[%emt 0:21:39]} b5 {[%emt 0:04:38]} 8. Bb3 {[%emt 0:00:05] [#] The position is equal.} b4 $146 {[%emt 0:02:43]} ({Predecessor:} 8... Bb7 9. g4 Nxb3 10. axb3 a6 11. g5 Nd7 12. Nge2 b4 13. Na4 d5 14. Be3 Bd6 {1-0 Bodrogi,M (2175)-Tardos,A Balaton op Hungary 1999 (1)}) 9. Nd1 {[%emt 0:01:09]} d5 {[%emt 0:03:03]} 10. Ne2 {[%emt 0:05:14]} dxe4 {[%emt 0:02:05]} 11. dxe4 {[%emt 0:00:05]} Ba6 {[%emt 0:01:08]} 12. O-O {[%emt 0:06:07]} Bc5+ {[%emt 0:04:47]} 13. Kh1 {[%emt 0:07:47]} Qb6 {[%emt 0:02:48]} 14. Bg5 {[%emt 0:05:39]} h5 {[%emt 0:05:41]} 15. Nf2 {[%emt 0:16:47]} (15. Re1 $142) 15... Bxf2 {[%emt 0:07:18]} 16. Bxf6 {[%emt 0:03:57]} gxf6 {[%emt 0:00:47]} 17. Qxf2 {[%emt 0:01:18]} Qxf2 {[%emt 0:04:00]} 18. Rxf2 {[%emt 0:00:05]} Rd8 {[%emt 0:00:10] White must now prevent ...Rd2.} 19. Kg1 {[%emt 0:04:09]} Ke7 {[%emt 0:08:05] Black is more active.} 20. a3 {[%emt 0:05:21]} Nxb3 {[%emt 0:00:42]} 21. cxb3 {[%emt 0:00:05]} bxa3 {[%emt 0:00:26]} 22. Nc3 {[%emt 0:01:11]} Rd7 {[%emt 0:08:45]} 23. Rxa3 {[%emt 0:00:34]} Bb5 {[%emt 0:00:54]} 24. Nxb5 {[%emt 0:05:03]} cxb5 $11 {[%emt 0:00:01][%mdl 4096] Endgame KRR-KRR} 25. Rc2 {[%emt 0:00:07] Dodges Rc8} Rhd8 {[%emt 0:04:34]} 26. Kf1 {[%emt 0:02:31]} Rb7 {[%emt 0:01:37]} 27. Ke2 {[%emt 0:01:49] Against Rd3} Rd4 {[%emt 0:00:28]} 28. Ke3 {[%emt 0:00:08] White is now going downhill.} Rbd7 {[%emt 0:00:21]} 29. h3 {[%emt 0:04:28]} b4 {[%emt 0:00:58]} 30. Ra4 {[%emt 0:00:04]} Rd3+ {[%emt 0:00:08]} 31. Ke2 {[%emt 0:00:05]} (31. Kf2 $142) 31... Rxb3 $17 {[%emt 0:00:15]} 32. Kf2 {[%emt 0:00:54]} h4 {[%emt 0:01:31]} 33. Re2 {[%emt 0:00:24] [#]} (33. Ra6 $17) 33... Kf8 $1 $19 {[%emt 0:00:24]} 34. Rc2 {[%emt 0:01:00]} (34. Ra5 $17 {is a better defense.}) 34... Kg7 {[%emt 0:00:24]} 35. Kg1 {[%emt 0:00:26] [#]} (35. Re2 $142) 35... Kh6 $1 {[%emt 0:03:02]} 36. Rc4 $2 {[%emt 0:00:16]} (36. Kf1) 36... Rd1+ {[%emt 0:00:39]} (36... Rxb2 $2 {too greedy.} 37. Raxb4 Rxb4 38. Rxb4 $19) 37. Kh2 {[%emt 0:00:07]} Re3 {[%emt 0:05:08]} (37... Rxb2 $2 {perishes.} 38. Raxb4 Rxb4 39. Rxb4 $19) 38. Rc2 {[%emt 0:01:20]} Ree1 {[%emt 0:00:18][%csl Gd1][%cal Re1h1]} 39. g4 {[%emt 0:00:22]} b3 {[%emt 0:02:29]} 40. Rf2 {[%emt 0:00:00]} Rh1+ {[%emt 0:00:00]} 41. Kg2 {[%emt 0:00:20]} Rdg1+ {[%emt 0:00:20][%mdl 64] Deflection} 42. Kf3 {[%emt 0:00:05]} Rxh3+ {[%emt 0:00:11]} 43. Ke2 {[%emt 0:00:04]} Rb1 {[%emt 0:00:28] Black mates.} 44. Rxa7 {[%emt 0:00:49]} Rxb2+ {[%emt 0:00:12]} 45. Kf1 {[%emt 0:00:06]} Rh1+ {[%emt 0:00:48]} 46. Kg2 {[%emt 0:00:02]} Rxf2+ {[%emt 0:00:25]} 47. Kxh1 {[%emt 0:00:05]} b2 {[%emt 0:00:24] Weighted Error Value: White=0.61/Black=0.06 (flawless)} 0-1